Cogmind - Beta 16.1 @@@ ROGUE MODE // 2026.04.09 @ 17:18:37 Player: Maelyn Result: Destroyed by D-53 Grenadier with Mini Grenade Launcher Performance ------------- Evolutions (0) 0 Regions Visited (2) 400 Robots Destroyed (29) 145 Value Destroyed (848) 848 Prototype IDs (0) 0 Alien Tech Used (0) 0 Bonus (0) 0 TOTAL SCORE: 1393 Bonus ------- None Cogmind --------- Core Integrity 0/250 Matter 290/300 Energy 160/160 System Corruption 2% Temperature Cool (0) Movement Walking (120) Location -10/Mines Parts ------- > --- POWER (1) -------- Light Nuclear Core > --- PROPULSION (2) --- Improved Aluminum Leg Improved Aluminum Leg > --- UTILITY (2) ------ Improved Heat Sink Medium Storage Unit > --- WEAPON (2) ------- Particle Gun > --- INVENTORY (10) --- Aluminum Leg Improved Heat Sink High-capacity Matter Pod (200) Experimental Sensor Array Medium Armor Plating Medium Armor Plating Shield Generator Particle Gun Autogun Mining Laser Peak State ------------ > --- POWER ------------ Light Nuclear Core > --- PROPULSION ------- Improved Aluminum Leg Improved Aluminum Leg > --- UTILITY ---------- Improved Heat Sink Medium Storage Unit > --- WEAPON ----------- Particle Gun Autogun > --- INVENTORY -------- Aluminum Leg Improved Heat Sink High-capacity Matter Pod Experimental Sensor Array Medium Armor Plating Medium Armor Plating Shield Generator Particle Gun Grenade Launcher Mining Laser [Rating: 17] Favorites ----------- Power Light Nuclear Core Engine Ion Engine Power Core Light Nuclear Core Propulsion Light Treads Treads Light Treads Leg Improved Aluminum Leg Utility Medium Storage Unit Device Seismic Detector Storage Medium Storage Unit Weapon Autogun Energy Gun Particle Gun Ballistic Gun Autogun Launcher Grenade Launcher Build | -11 -10 -10 ------- Run | Yrd Mat Min Slots Evolved . | . . . Power . | . . . Propulsion . | . . . Utility . | . . . Weapon . | . . . Parts Attached 23 | 6 9 8 Power 4 | 1 1 2 Engine 1 | 1 . . Core 3 | . 1 2 Reactor . | . . . Propulsion 5 | 2 1 2 Treads 3 | 2 1 . Leg 2 | . . 2 Wheel . | . . . Hover . | . . . Flight . | . . . Utility 4 | 1 2 1 Device 2 | . 1 1 Storage 2 | 1 1 . Processor . | . . . Hackware . | . . . Protection . | . . . Artifact . | . . . Weapon 10 | 2 5 3 Energy Gun 4 | 1 1 2 Energy Cannon . | . . . Ballistic Gun 5 | 1 4 . Ballistic Cannon . | . . . Launcher 1 | . . 1 Special Weapon . | . . . Impact Weapon . | . . . Slashing Weapon . | . . . Piercing Weapon . | . . . Special Melee Weapon . | . . . Unidentified Prototypes . | . . . Parts Lost 5 | . 2 3 Power 2 | . 1 1 Propulsion 2 | . 1 1 Utility 1 | . . 1 Weapon . | . . . Highest Loss Streak 1 | . 1 1 To Critical Strikes . | . . . Average Backups 8 | 3 8 9 Power . | . 1 . Propulsion 1 | 1 1 1 Utility 4 | . 3 5 Weapon 2 | . 1 3 Tool/Special . | . . . Unused Backups 17 | . 10 7 Power 2 | . 2 . Propulsion 4 | . 3 1 Utility 8 | . 2 6 Weapon 3 | . 3 . Tool/Special . | . . . Average Slot Usage (%) 97 | . 96 97 Engine 3 | . 5 . Core 9 | . 8 13 Treads 20 | . 26 2 Leg 6 | . . 25 Device 12 | . 12 13 Storage 14 | . 14 14 Energy Gun 10 | . 9 13 Ballistic Gun 16 | . 19 11 Peak Build Rating 17 | 6 13 17 Average Rating 11 | 4 10 14 On Entrance 6 | . 6 12 Avg Prop Armor Cover (%) . | . . . Naked Turns . | . . . Heaviest Build 22 | 14 22 22 Greatest Support 40 | 40 40 26 Greatest Overweight (x) 1 | . 1 1 Average Overweight (x) . | . . . Largest Inventory Capacity 10 | 8 10 10 Average Capacity 9 | 6 9 10 Most Carried 10 | 6 10 10 Average Carried 8 | 3 8 9 Final Capacity 10 | 8 10 10 Final Carried 10 | 6 10 10 Class Distribution -------------------- 93% | Mutant 6% | Scavenger-Mutant Dominant Class ---------------- Mutant | -10/Materials Mutant | -10/Mines Resources | -11 -10 -10 ----------- Run | Yrd Mat Min Matter Collected 1047 | 216 409 422 Remotely . | . . . Salvage Created 1051 | 44 692 315 Parts 56 | 6 34 16 Haulers Intercepted . | . . . Recyclers Shooed 1 | . 1 . Parts Field Recycled . | . . . Retrieved Matter . | . . . Parts Self-Destructed . | . . . Prevented . | . . . Parts Restored . | . . . Kills | -11 -10 -10 ------- Run | Yrd Mat Min Combat Hostiles Destroyed 22 | . 13 9 Guns 22 | . 13 9 Classes Destroyed 6 | 1 4 1 Tunneler 2 | 2 . . Recycler 1 | . 1 . Operator 1 | . 1 . Watcher 3 | . 3 . Swarmer 3 | . . 3 Grunt 19 | . 13 6 Best Kill Streak 5 | 2 5 3 Combat Bots Only 4 | . 4 3 Max Kills in Single Turn 1 | 1 1 1 Gunslinging . | . . . Exploded . | . . . Melee . | . . . Uniques/NPCs Destroyed . | . . . Combat | -11 -10 -10 -------- Run | Yrd Mat Min Hostile Shots Fired 140 | . 69 71 Missed 31 | . 22 9 Hits 109 | . 47 62 Projectile 109 | . 47 62 AOE 1 | . . 1 Critical Strikes 4 | . 2 2 Part Disruptions 1 | . . 1 Damage Taken 1502 | . 730 772 Core 263 | . 93 170 Absorbed by Shields . | . . . Core Remaining (%) 100 | 100 . . Volleys Fired 109 | 2 64 43 Largest 2 | 2 2 2 Hottest 88 | 70 85 88 Shots Fired 197 | 4 128 65 Gun 197 | 4 128 65 Cannon . | . . . Launcher . | . . . Special . | . . . Kinetic 116 | 2 71 43 Thermal 81 | 2 57 22 Explosive . | . . . Electromagnetic . | . . . Robot Hit Streak 21 | 4 21 9 Robot Miss Streak 4 | . 4 4 Penetration Max . | . . . Secondary Targets 2 | . 2 . Max Gunslinging Chain 1 | . 1 . Shots Hit Robots 125 | 4 81 40 Core Hits 49 | 2 32 15 Critical Kills 1 | . 1 . Critical Parts Destroyed . | . . . Critical Strikes 3 | . 3 . Burn 2 | . 2 . Destroy 1 | . 1 . Melee Attacks . | . . . Impact . | . . . Slashing . | . . . Piercing . | . . . Sneak Attacks . | . . . Combat Hostiles . | . . . Follow-up Attacks . | . . . Damage Inflicted 1769 | 52 1105 612 Guns 1756 | 52 1102 602 Cannons . | . . . Explosions . | . . . Melee . | . . . Ramming 13 | . 3 10 Kinetic 1010 | 28 580 402 Thermal 746 | 24 522 200 Explosive . | . . . Electromagnetic . | . . . Impact . | . . . Slashing . | . . . Piercing . | . . . Highest Corruption 2 | . 2 2 Average Corruption 1 | . 1 2 Corruption Purged . | . . . Corruption Blocked . | . . . Effects 15 | . 10 5 Message Errors 7 | . 6 1 Matter Fused 2 | . 1 1 Heat Flow Errors 1 | . . 1 Energy Discharges 1 | . . 1 Parts Rejected 1 | . . 1 Data Loss (major) 2 | . 2 . Alerts 1 | . 1 . Overload Shots . | . . . Overflow Damage . | . . . Projectiles . | . . . Explosions . | . . . Melee . | . . . Knockbacks . | . . . Impact . | . . . Kinetic . | . . . Secondary . | . . . Self-Inflicted Damage 101 | . 101 . Shots 1 | . 1 . Rammed . | . . . Targets Rammed 2 | . 1 1 Kicked 1 | . . 1 Crushed 1 | . 1 . Highest Temperature 376 | 9 161 376 Average Temperature 88 | 6 59 143 Received Heat Transfer 831 | . 375 456 Siege Activations . | . . . Martial Activations . | . . . Shielding Activations . | . . . Robots Disrupted . | . . . Combat Hostiles . | . . . Robots Corrupted . | . . . Combat Hostiles . | . . . Parts Fried . | . . . Impact Corruptions . | . . . Robots Melted . | . . . Combat Hostiles . | . . . Parts Melted 6 | . 4 2 Heat Transferred 2109 | 74 1554 481 Parts Sabotaged . | . . . Parts Stolen . | . . . Parts Stripped . | . . . Power Chain Reactions . | . . . Alert | -11 -10 -10 ------- Run | Yrd Mat Min Maximum Alert Level . | . . . Low Security (%) 100 | 100 100 100 Level 1 . | . . . Level 2 . | . . . Level 3 . | . . . Level 4 . | . . . Level 5 . | . . . High Security . | . . . Max Security . | . . . Peak Influence 134 | 10 134 70 Initial 9 | . . 9 Average 25 | . 27 24 Influence Increases 664 | 10 434 220 Destroy 0b10 Robot/C 440 | . 260 180 Destroy 0b10 Robot/NC 35 | 10 25 . Destroy Leader 106 | . 66 40 Successful Hack 16 | . 16 . Disable Machine 15 | . 15 . Destroy Structure 22 | . 22 . Lose Combat Pursuer 30 | . 30 . Influence Decreases 664 | 10 409 245 Entered New Map 16 | . . 16 Time Decay 608 | 10 399 199 Lost Part 40 | . 10 30 Squads Dispatched 3 | . 3 . Investigation 2 | . 2 . Extermination . | . . . Reinforcement 1 | . 1 . Assault . | . . . Garrison . | . . . Intercept . | . . . Searches Triggered . | . . . Construction Impeded . | . . . Haulers Reinforced . | . . . Active Scanning Responses . | . . . Cargo Convoy Interrupts . | . . . Stealth | -11 -10 -10 --------- Run | Yrd Mat Min Distress Signals 1 | . 1 . Communications Jammed . | . . . Distress Signals . | . . . Times Spotted 37 | . 23 14 Peak Tracking Total 8 | . 7 8 Tactical Retreats 2 | . 1 1 Traps | -11 -10 -10 ------- Run | Yrd Mat Min Traps Triggered 4 | . 4 . Indirectly . | . . . Trap Hack Attempts . | . . . Triggered . | . . . Disarmed . | . . . Reprogrammed . | . . . Reused . | . . . Traps Extracted . | . . . Installed . | . . . Triggered . | . . . Machines | -11 -10 -10 ---------- Run | Yrd Mat Min Machines Disabled 1 | . 1 . Max in Single Turn 1 | . 1 . Machines Repaired . | . . . Machines Dismantled . | . . . Machines Sabotaged . | . . . Overloaded Fab Kills . | . . . Hacking | -11 -10 -10 --------- Run | Yrd Mat Min Machines Accessed 3 | . 3 . Terminals 3 | . 3 . Fabricators . | . . . Repair Stations . | . . . Recycling Units . | . . . Scanalyzers . | . . . Garrison Access . | . . . Total Hacks 6 | . 6 . Successful 3 | . 3 . Failed 3 | . 3 . Catastrophic . | . . . Database Lockouts . | . . . Manual 5 | . 5 . Terminals 6 | . 6 . Fabricators . | . . . Repair Stations . | . . . Recycling Units . | . . . Scanalyzers . | . . . Garrison Access . | . . . Terminal Hacks 3 | . 3 . Robot Analysis 2 | . 2 . Locate Traps 1 | . 1 . Fabricator Hacks . | . . . Repair Station Hacks . | . . . Recycling Unit Hacks . | . . . Scanalyzer . | . . . Garrison Access Hacks . | . . . Unauthorized Hacks . | . . . Terminals . | . . . Fabricators . | . . . Repair Stations . | . . . Recycling Units . | . . . Scanalyzers . | . . . Garrison Access . | . . . Data Cores Recovered . | . . . Used . | . . . Hacking Detections 1 | . 1 . Full Trace Events 1 | . 1 . Feedback Events . | . . . Feedback Blocked . | . . . Robot Schematics Acquired . | . . . Robots Built . | . . . Authchips . | . . . Time . | . . . Total Robot Build Rating . | . . . Part Schematics Acquired . | . . . Parts Built . | . . . Authchips . | . . . Time . | . . . Total Part Build Rating . | . . . Part Studies Acquired . | . . . Parts Repaired . | . . . Time . | . . . Parts Recycled . | . . . Recycled Matter . | . . . Retrieved Matter . | . . . Retrieved Components . | . . . Parts Scanalyzed . | . . . Part Schematics Acquired . | . . . Parts Damaged . | . . . Bothacking | -11 -10 -10 ------------ Run | Yrd Mat Min Used RIF Installer . | . . . Robots Hacked . | . . . Non-combat . | . . . Combat . | . . . Robot Hacks Applied . | . . . Relay Couplers Released . | . . . Fabnet Peak Effective % . | . . . Robots Rewired . | . . . Allies Hacked . | . . . Hacks Repelled . | . . . Allies | -11 -10 -10 -------- Run | Yrd Mat Min Total Allies . | . . . Largest Group . | . . . Highest-Rated Group . | . . . Highest-Rated Ally . | . . . Total Orders . | . . . Ally Attacks . | . . . Total Damage . | . . . Kills . | . . . Allies Corrupted . | . . . Allies Melted . | . . . Intel | -11 -10 -10 ------- Run | Yrd Mat Min Active Infowar (turns) 1907 | . 1630 277 Seismic 1907 | . 1630 277 Robot Analysis Total 2 | . 2 . Derelict Logs Recovered 1 | . . 1 Drone Launches . | . . . Drone Recoveries . | . . . Exploration | -11 -10 -10 ------------- Run | Yrd Mat Min Turns Passed 2511 | 98 1816 597 Spaces Moved 1408 | 57 962 389 Core 15 | 15 . . Treads 1010 | 42 962 6 Legs 383 | . . 383 Wheels . | . . . Hover . | . . . Flight . | . . . Fastest Speed 50 | 50 160 120 Average Speed 151 | 131 164 122 Slowest Speed 240 | 160 240 240 Overloaded Moves . | . . . Propulsion Burnouts . | . . . Robots Hopped . | . . . Potential Cave-ins . | . . . Cave-ins Triggered . | . . . Exploration Rate (%) 54 | 3 88 73 Regions Visited 2 Branch Regions 1 Pre-discovered Areas 1 | . . 1 Known Exits Taken . | . . . Unknown Exits Taken 2 | 1 1 . Scrap Searched 2 | . . 2 Spaces Dug . | . . . Terrain Destroyed 30 | . 30 . Melee . | . . . Projectile . | . . . AOE 30 | . 30 . Terrain Rammed . | . . . Walls Destroyed . | . . . Machines Disabled . | . . . Actions | -11 -10 -10 --------- Run | Yrd Mat Min Total 1606 | 76 1076 454 Wait . | . . . Move 1406 | 56 961 389 Hop . | . . . Pick Up 41 | 12 23 6 Fast Attach 1 | . 1 . Attach 12 | 6 2 4 Detach . | . . . Swap 13 | . 6 7 Drop 22 | . 18 4 Fire 109 | 2 64 43 Melee . | . . . Ram . | . . . Kick 1 | . . 1 Crush 1 | . 1 . Escape Stasis . | . . . Rewire . | . . . Trap . | . . . Miscellaneous . | . . . Route ------- -11/Scrapyard -10/Materials (discovered 5 exits: [*Mat x3] / [*Min] / [*Sub]) -10/Mines (discovered 3 exits: [*Mat x2] / [*Sub]) History --------- Turn | Location | Event 25 | -11/Scrapyard | Discovered new exit (range 15) 99 | -11/Scrapyard | Entered Materials 306 | -10/Materials | Build established: Mutant 313 | -10/Materials | Discovered new exit (range 13) 621 | -10/Materials | Discovered new exit (range 12) 999 | -10/Materials | Discovered new exit (range 15) 1383 | -10/Materials | Discovered new exit (range 4) 1889 | -10/Materials | Discovered new exit (range 15) 1915 | -10/Materials | Entered Mines 1920 | -10/Mines | Core integrity fell below 50% 1957 | -10/Mines | Met a Derelict bent on vengeance 2079 | -10/Mines | Discovered new exit (range 4) 2087 | -10/Mines | Learned location of Storage (-7) 2197 | -10/Mines | Core integrity fell below 20% 2305 | -10/Mines | Found a hidden stash of uninstalled traps 2317 | -10/Mines | Found a damaged Exp. Sensor Array with a note attached 2320 | -10/Mines | Found Prototype Device 2414 | -10/Mines | Discovered new exit (range 14) 2418 | -10/Mines | Found DCF Scrap (10 items) 2418 | -10/Mines | Discovered new exit (range 10) 2476 | -10/Mines | Assembled infested the area 2512 | -10/Mines | Destroyed by D-53 Grenadier with Mini Grenade Launcher Last Messages --------------- 02418_ Searching scrap... 02418_ Found Lgt. Ion Engine. 02418_ Found Com. Wheel. 02418_ Found Flight Unit. 02418_ Found Heat Sink. 02418_ Found ECM Suite. 02418_ Found Lgt. Assault Rifle. 02418_ Found Med. Laser. 02418_ Found 140 Matter. A note is attached: "With love, from the DCF." 02418_ EXIT=FOUND 02419_ Acquired 107 matter. 02420_ T-07 Excavator is excavating. 02476_ ALERT: Infestation in the mines, dispatching Demolisher response squad. 02481_ Kicked U-05 Engineer out of the way. 02482_ Searching scrap... 02482_ Found Datajack. 02482_ Found 50 Matter. 02498_ System corrupted: Grenade Launcher rejected. Map ----- +----------------------------------------------------+ | ???# #????# #????#### #???????????? | | ???# #????# ###### #???????????? | | ???# #????#### #???????????? | | ?### #???????######## #???????????? | | ## #??????????????# #???????????? | | # ########???????# #???????????? | | # #???????# #???????????? | | # ####### #???????# #???????????? | | #& ##???????????????# #???????????? | | & ##?????????######## ##??????????? | | &&##???????# #??????????? | | ##???????????######## #??????????? | | ##??????????###??????# #??????????? | | ???????????## ##????# #??????????? | | ???????????# ##??# #??????????? | | ???????????# ### ##?????????? | | ???????????# ###???????? | | ????????????# ##??????? | | ????????????## #??????? | | ?????????????#### #??????? | | ????????????????## #??????? | | ?????????????????## #??????? | | ??????????????????## ##??????? | | ???????????????????## ## ##???????? | | ????????????????????##%##d#????????? | | ?????????????????????#%##@#????????? | | ?????????????????????#%## #????????? | | ?????????????????????#/## #????????? | | ?????????????????????#%## #????????? | | ?????????????????????# ## #????????? | | ???????????????????### # a#????????? | | ???????????????????# ] ????????? | | ???????????????????# ## ##????????? | | ???????????????????# #? #??????????? | | ???????????????????# ###???????????? | | ???????????????????# #?????????????? | | ??????????????????? ?????????????? | | #??????????????????###?????????????? | | ####???????????????????????????????? | | ??????????????????????????????? | | ??????????????????????????????? | | ???????????????????????????????????? | | ???????????????????????????????????? | | ???????????????????????????????????? | | ???????????????????????????????????? | | ???????????????????????????????????? | | ???????????????????????????????????? | | ???????????????????????????????????? | | ???????????????????????????????????? | | ???????????????????????????????????? | +----------------------------------------------------+ Best States ------------- Heat Dissipation 39 Energy Generation 14 Energy Capacity 250 Matter Stores 300 Matter Capacity 300 Sight Range 16 Terrain Scan Density 10 Evasion (%) 55 Recoil Reduction 2 Item Schematics ----------------- None Robot Schematics ------------------ None Fabricated ------------ Nothing Repaired ---------- Nothing Studied --------- None Alien Tech Used ----------------- None Achievements -------------- None Challenges ------------ None Game ------ Seed VariableParticleDetector Manual? 0 Play Time 00:24:39 Cumulative 26.7 hours Start 2026.04.09 @ 16:52:37 End 2026.04.09 @ 17:18:37 Sessions 1 Manual Loads 0 Difficulty Rogue Special Mode None Game No. 79 Rogue 79 Adventurer 0 Explorer 0 Win Type - Total 0 Types 0/0/0/0/0/0/0/0/0/0 Lore% 13 Gallery% 22 Achievement% 14 Wizard Run 0 Options --------- Layout 1 ASCII 0 Keyboard 1 Movement Vi Keybinds 0 Fullscreen 0 Font 16/TamsynBold Map View 64x42 Zoom Use 0% Tactical HUD 1 Map Filters NONE Filters NONE Steam 1 RUN: a540fa0d-ccba-4d54-b27a-8b0e25fc495d